Workbook

Sheet 河源市
A1: 附件2-1
A2: 河源市2023年度电动汽车充电基础设施奖补资金分配情况计算表（第一批）
A3: 序号 | B3: 项目单位 | C3: 非高速公路直流充电桩 | E3: 非高速公路交流充电桩 | G3: 超级充电桩 | I3: 换电站 | K3: 高速公路直流充电桩 | M3: 高速公路交流充电桩 | O3: 直流充电桩补贴金额（粤东西北300元/千瓦，高速公路200元/千瓦） | P3: 交流充电桩补贴金额（粤东西北60元/千瓦高速公路40元/千瓦） | Q3: 合计金额（元） | R3: 折算后金额（万元） | S3: 备注
C4: 数量（个） | D4: 总功率（千瓦） | E4: 数量（个） | F4: 总功率（千瓦） | G4: 数量（个） | H4: 总功率（千瓦） | I4: 数量（个） | J4: 总功率（千瓦） | K4: 数量（个） | L4: 总功率（千瓦） | M4: 数量（个） | N4: 总功率（千瓦） | O4: 补贴金额（元） | P4: 补贴金额（元） | R4: 折算后的补贴金额（万元） （取整到十）
A5: 一 | B5: 源城区小计 | C5: =SUM(C6:C22) -> 204 | D5: =SUM(D6:D22) -> 17600 | E5: =SUM(E6:E21) -> 0 | F5: =SUM(F6:F21) -> 0 | G5: =SUM(G6:G22) -> 3 | H5: =SUM(H6:H22) -> 1670 | I5: =SUM(I6:I22) -> 1 | J5: =SUM(J6:J21) -> 550 | K5: - | L5: - | M5: - | N5: - | O5: =D5*300+H5*300+J5*300 -> 5946000 | P5: =F5*60 -> 0 | Q5: =O5+P5 -> 5946000 | R5: 272.321
A6: 1 | B6: 河源市峰充新能源有限公司 | C6: 5 | D6: 600 | E6: 0 | F6: 0 | G6: 0 | H6: 0 | I6: 0 | J6: 0 | K6: - | L6: - | M6: - | N6: - | O6: 180000 | P6: 0 | Q6: 180000 | R6: =TRUNC(Q6*0.458/10000,3) -> 8.244
A7: 2 | B7: 广东河惠新能源科技有限公司 | C7: 7 | D7: 960 | E7: 0 | F7: 0 | G7: 2 | H7: 1190 | I7: 0 | J7: 0 | K7: - | L7: - | M7: - | N7: - | O7: 645000 | P7: 0 | Q7: 645000 | R7: 29.541
A8: 3 | B8: 河源市国丰酒店管理有限公司 | C8: 6 | D8: 720 | E8: 0 | F8: 0 | G8: 0 | H8: 0 | I8: 0 | J8: 0 | K8: - | L8: - | M8: - | N8: - | O8: 216000 | P8: 0 | Q8: 216000 | R8: 9.892
A9: 4 | B9: 深圳蔚来能源有限公司 | C9: 1 | D9: 120 | E9: 0 | F9: 0 | G9: 0 | H9: 0 | I9: 1 | J9: 550 | K9: - | L9: - | M9: - | N9: - | O9: 201000 | P9: 0 | Q9: 201000 | R9: 9.205
A10: 5 | B10: 河源市丽兴电子有限公司 | C10: 5 | D10: 600 | E10: 0 | F10: 0 | G10: 0 | H10: 0 | I10: 0 | J10: 0 | K10: - | L10: - | M10: - | N10: - | O10: 180000 | P10: 0 | Q10: 180000 | R10: 8.244
A11: 6 | B11: 河源市绿电科技发展有限责任公司 | C11: 2 | D11: 120 | E11: 0 | F11: 0 | G11: 0 | H11: 0 | I11: 0 | J11: 0 | K11: - | L11: - | M11: - | N11: - | O11: 36000 | P11: 0 | Q11: 36000 | R11: 1.648
A12: 7 | B12: 深河公共（河源市）新能源有限公司 | C12: 3 | D12: 1200 | E12: 0 | F12: 0 | G12: 0 | H12: 0 | I12: 0 | J12: 0 | K12: - | L12: - | M12: - | N12: - | O12: 360000 | P12: 0 | Q12: 360000 | R12: 16.488
A13: 8 | B13: 搜搜智能充电服务（河源市）有限公司 | C13: 5 | D13: 600 | E13: 0 | F13: 0 | G13: 0 | H13: 0 | I13: 0 | J13: 0 | K13: - | L13: - | M13: - | N13: - | O13: 180000 | P13: 0 | Q13: 180000 | R13: 8.244
A14: 9 | B14: 中国石化销售股份有限公司广东河源石油分公司 | C14: 4 | D14: 1560 | E14: 0 | F14: 0 | G14: 0 | H14: 0 | I14: 0 | J14: 0 | K14: - | L14: - | M14: - | N14: - | O14: 468000 | P14: 0 | Q14: 468000 | R14: 21.434
A15: 10 | B15: 广东聚朋友新能源有限公司 | C15: 66 | D15: 4040 | E15: 0 | F15: 0 | G15: 0 | H15: 0 | I15: 0 | J15: 0 | K15: - | L15: - | M15: - | N15: - | O15: 1212000 | P15: 0 | Q15: 1212000 | R15: 55.509
A16: 11 | B16: 河源源城埃安汽车销售服务有限公司 | C16: 0 | D16: 0 | E16: 0 | F16: 0 | G16: 1 | H16: 480 | I16: 0 | J16: 0 | K16: - | L16: - | M16: - | N16: - | O16: 144000 | P16: 0 | Q16: 144000 | R16: 6.595
A17: 12 | B17: 河源市领创科技有限公司 | C17: 7 | D17: 840 | E17: 0 | F17: 0 | G17: 0 | H17: 0 | I17: 0 | J17: 0 | K17: - | L17: - | M17: - | N17: - | O17: 252000 | P17: 0 | Q17: 252000 | R17: 11.541
A18: 13 | B18: 河源绿达综合能源有限责任公司 | C18: 5 | D18: 840 | E18: 0 | F18: 0 | G18: 0 | H18: 0 | I18: 0 | J18: 0 | K18: - | L18: - | M18: - | N18: - | O18: 252000 | P18: 0 | Q18: 252000 | R18: =TRUNC(Q18*0.458/10000,3) -> 11.541
A19: 14 | B19: 河源市河成新能源科技有限公司 | C19: 10 | D19: 600 | E19: 0 | F19: 0 | G19: 0 | H19: 0 | I19: 0 | J19: 0 | K19: - | L19: - | M19: - | N19: - | O19: 180000 | P19: 0 | Q19: 180000 | R19: 8.244
A20: 15 | B20: 河源市随便充新能源科技有限公司 | C20: 60 | D20: 3600 | E20: 0 | F20: 0 | G20: 0 | H20: 0 | I20: 0 | J20: 0 | K20: - | L20: - | M20: - | N20: - | O20: 1080000 | P20: 0 | Q20: 1080000 | R20: 49.464 | S20: 2023年之前接入粤易充
A21: 16 | B21: 河源市丰恒科技有限公司 | C21: 16 | D21: 1080 | E21: 0 | F21: 0 | G21: 0 | H21: 0 | I21: 0 | J21: 0 | K21: - | L21: - | M21: - | N21: - | O21: 324000 | P21: 0 | Q21: 324000 | R21: 14.839 | S21: 其中10个充电桩共600千瓦为2023年之前接入粤易充
A22: 17 | B22: 河源顺易充新能源有限公司 | C22: 2 | D22: 120 | E22: 0 | F22: 0 | G22: 0 | H22: 0 | I22: 0 | J22: 0 | K22: - | L22: - | M22: - | N22: - | O22: 36000 | P22: 0 | Q22: 36000 | R22: 1.648 | S22: 2023年之前接入粤易充
A23: 二 | B23: 东源县小计 | C23: =SUM(C24:C33) -> 55 | D23: =SUM(D24:D33) -> 7200 | E23: =SUM(E24:E32) -> 7 | F23: =SUM(F24:F32) -> 49 | G23: =SUM(G24:G32) -> 1 | H23: =SUM(H24:H32) -> 520 | I23: 0 | J23: 0 | K23: - | L23: - | M23: - | N23: - | O23: 2316000 | P23: 2940 | Q23: 2318940 | R23: 106.202
A24: 1 | B24: 广东健鹏电力工程有限公司 | C24: 7 | D24: 840 | E24: 0 | F24: 0 | G24: 0 | H24: 0 | I24: 0 | J24: 0 | K24: - | L24: - | M24: - | N24: - | O24: 252000 | P24: 0 | Q24: 252000 | R24: 11.541
A25: 2 | B25: 河源国煌新能源科技有限公司 | C25: 6 | D25: 720 | E25: 7 | F25: 49 | G25: 0 | H25: 0 | I25: 0 | J25: 0 | K25: - | L25: - | M25: - | N25: - | O25: 216000 | P25: 2940 | Q25: 218940 | R25: 10.027
A26: 3 | B26: 龙川县易电科技有限公司 | C26: 5 | D26: 600 | E26: 0 | F26: 0 | G26: 0 | H26: 0 | I26: 0 | J26: 0 | K26: - | L26: - | M26: - | N26: - | O26: 180000 | P26: 0 | Q26: 180000 | R26: 8.244
A27: 4 | B27: 东源县公用事业投资有限公司 | C27: 24 | D27: 2400 | E27: 0 | F27: 0 | G27: 0 | H27: 0 | I27: 0 | J27: 0 | K27: - | L27: - | M27: - | N27: - | O27: 720000 | P27: 0 | Q27: 720000 | R27: 32.976
A28: 5 | B28: 中国石化销售股份有限公司广东河源石油分公司 | C28: 7 | D28: 2040 | E28: 0 | F28: 0 | G28: 0 | H28: 0 | I28: 0 | J28: 0 | K28: - | L28: - | M28: - | N28: - | O28: 612000 | P28: 0 | Q28: 612000 | R28: 28.029
A29: 6 | B29: 东源县田裕农业科技发展有限公司 | C29: 1 | D29: 120 | E29: 0 | F29: 0 | G29: 0 | H29: 0 | I29: 0 | J29: 0 | K29: - | L29: - | M29: - | N29: - | O29: 36000 | P29: 0 | Q29: 36000 | R29: 1.648
A30: 7 | B30: 车和家(广州)能源服务有限公司 | C30: 0 | D30: 0 | E30: 0 | F30: 0 | G30: 1 | H30: 520 | I30: 0 | J30: 0 | K30: - | L30: - | M30: - | N30: - | O30: 156000 | P30: 0 | Q30: 156000 | R30: 7.144
A31: 8 | B31: 广东华阳新能源有限公司 | C31: 2 | D31: 240 | E31: 0 | F31: 0 | G31: 0 | H31: 0 | I31: 0 | J31: 0 | K31: - | L31: - | M31: - | N31: - | O31: 72000 | P31: 0 | Q31: 72000 | R31: 3.297
A32: 9 | B32: 河源市汇德市政工程有限公司 | C32: 1 | D32: 120 | E32: 0 | F32: 0 | G32: 0 | H32: 0 | I32: 0 | J32: 0 | K32: - | L32: - | M32: - | N32: - | O32: 36000 | P32: 0 | Q32: 36000 | R32: 1.648
A33: 10 | B33: 广东聚朋友新能源有限公司 | C33: 2 | D33: 120 | E33: 0 | F33: 0 | G33: 0 | H33: 0 | I33: 0 | J33: 0 | K33: - | L33: - | M33: - | N33: - | O33: 36000 | P33: 0 | Q33: 36000 | R33: 1.648
A34: 三 | B34: 和平县小计 | C34: =SUM(C35:C41) -> 17 | D34: =SUM(D35:D41) -> 2080 | E34: =SUM(E35:E40) -> 0 | F34: =SUM(F35:F40) -> 0 | G34: =SUM(G35:G40) -> 0 | H34: =SUM(H35:H40) -> 0 | I34: 0 | J34: 0 | K34: - | L34: - | M34: - | N34: - | O34: 624000 | P34: 0 | Q34: 624000 | R34: 28.576
A35: 1 | B35: 佛山祥源电力工程有限公司 | C35: 1 | D35: 120 | E35: 0 | F35: 0 | G35: 0 | H35: 0 | I35: 0 | J35: 0 | K35: - | L35: - | M35: - | N35: - | O35: =D35*300+H35*300+J35*300 -> 36000 | P35: =F35*60 -> 0 | Q35: =O35+P35 -> 36000 | R35: =TRUNC(Q35*0.458/10000,3) -> 1.648
A36: 2 | B36: 河源绿达综合能源有限责任公司 | C36: 4 | D36: 480 | E36: 0 | F36: 0 | G36: 0 | H36: 0 | I36: 0 | J36: 0 | K36: - | L36: - | M36: - | N36: - | O36: 144000 | P36: 0 | Q36: 144000 | R36: =TRUNC(Q36*0.458/10000,3) -> 6.595
A37: 3 | B37: 和平县和畅环保工程有限公司 | C37: 4 | D37: 480 | E37: 0 | F37: 0 | G37: 0 | H37: 0 | I37: 0 | J37: 0 | K37: - | L37: - | M37: - | N37: - | O37: 144000 | P37: 0 | Q37: 144000 | R37: 6.595
A38: 4 | B38: 河源市泓达新能源科技有限公司 | C38: 3 | D38: 360 | E38: 0 | F38: 0 | G38: 0 | H38: 0 | I38: 0 | J38: 0 | K38: - | L38: - | M38: - | N38: - | O38: 108000 | P38: 0 | Q38: 108000 | R38: 4.946
A39: 5 | B39: 河源浩润新能源有限公司 | C39: 1 | D39: 120 | E39: 0 | F39: 0 | G39: 0 | H39: 0 | I39: 0 | J39: 0 | K39: - | L39: - | M39: - | N39: - | O39: 36000 | P39: 0 | Q39: 36000 | R39: 1.648
A40: 6 | B40: 广东同富电力工程有限公司 | C40: 3 | D40: 360 | E40: 0 | F40: 0 | G40: 0 | H40: 0 | I40: 0 | J40: 0 | K40: - | L40: - | M40: - | N40: - | O40: 108000 | P40: 0 | Q40: 108000 | R40: 4.946
A41: 7 | B41: 和平县黄金商务酒店 | C41: 1 | D41: 160 | E41: 0 | F41: 0 | G41: 0 | H41: 0 | I41: 0 | J41: 0 | K41: - | L41: - | M41: - | N41: - | O41: 48000 | P41: 0 | Q41: 48000 | R41: 2.198 | S41: 2023年之前接入粤易充
A42: 四 | B42: 龙川县小计 | C42: =SUM(C43:C54) -> 56 | D42: 6760 | E42: 2 | F42: 14 | G42: 3 | H42: 1440 | I42: 0 | J42: 0 | K42: - | L42: - | M42: - | N42: - | O42: 2460000 | P42: 840 | Q42: 2460840 | R42: 112.702
A43: 1 | B43: 龙川县东凯新能源运营部 | C43: 4 | D43: 240 | E43: 0 | F43: 0 | G43: 0 | H43: 0 | I43: 0 | J43: 0 | K43: - | L43: - | M43: - | N43: - | O43: 72000 | P43: 0 | Q43: 72000 | R43: 3.297
A44: 2 | B44: 河源国煌新能源科技有限公司 | C44: 3 | D44: 360 | E44: 2 | F44: 14 | G44: 1 | H44: 480 | I44: 0 | J44: 0 | K44: - | L44: - | M44: - | N44: - | O44: 252000 | P44: 840 | Q44: 252840 | R44: 11.580
A45: 3 | B45: 广东晟和新能源科技有限公司 | C45: 2 | D45: 240 | E45: 0 | F45: 0 | G45: 0 | H45: 0 | I45: 0 | J45: 0 | K45: - | L45: - | M45: - | N45: - | O45: 72000 | P45: 0 | Q45: 72000 | R45: 3.297
A46: 4 | B46: 龙川县易电科技有限公司 | C46: 5 | D46: 600 | E46: 0 | F46: 0 | G46: 0 | H46: 0 | I46: 0 | J46: 0 | K46: - | L46: - | M46: - | N46: - | O46: 180000 | P46: 0 | Q46: 180000 | R46: 8.244
A47: 5 | B47: 龙川县润隆汽车贸易有限公司 | C47: 4 | D47: 600 | E47: 0 | F47: 0 | G47: 0 | H47: 0 | I47: 0 | J47: 0 | K47: - | L47: - | M47: - | N47: - | O47: 180000 | P47: 0 | Q47: 180000 | R47: 8.244
A48: 6 | B48: 中国石化销售股份有限公司广东河源石油分公司 | C48: 9 | D48: 1080 | E48: 0 | F48: 0 | G48: 1 | H48: 480 | I48: 0 | J48: 0 | K48: - | L48: - | M48: - | N48: - | O48: 468000 | P48: 0 | Q48: 468000 | R48: 21.434
A49: 7 | B49: 龙川县小牛科技发展有限公司 | C49: 15 | D49: 2040 | E49: 0 | F49: 0 | G49: 0 | H49: 0 | I49: 0 | J49: 0 | K49: - | L49: - | M49: - | N49: - | O49: 612000 | P49: 0 | Q49: 612000 | R49: 28.029
A50: 8 | B50: 河源市百胜新能源汽车有限公司 | C50: 2 | D50: 240 | E50: 0 | F50: 0 | G50: 0 | H50: 0 | I50: 0 | J50: 0 | K50: - | L50: - | M50: - | N50: - | O50: 72000 | P50: 0 | Q50: 72000 | R50: 3.297
A51: 9 | B51: 广东华阳新能源有限公司 | C51: 3 | D51: 360 | E51: 0 | F51: 0 | G51: 0 | H51: 0 | I51: 0 | J51: 0 | K51: - | L51: - | M51: - | N51: - | O51: 108000 | P51: 0 | Q51: 108000 | R51: 4.946
A52: 10 | B52: 龙川县隆豪家具有限公司 | C52: 8 | D52: 920 | E52: 0 | F52: 0 | G52: 0 | H52: 0 | I52: 0 | J52: 0 | K52: - | L52: - | M52: - | N52: - | O52: 276000 | P52: 0 | Q52: 276000 | R52: 12.640
A53: 11 | B53: 龙川兴隆机电厂 | C53: 0 | D53: 0 | E53: 0 | F53: 0 | G53: 1 | H53: 480 | I53: 0 | J53: 0 | K53: - | L53: - | M53: - | N53: - | O53: 144000 | P53: 0 | Q53: 144000 | R53: 6.595
A54: 12 | B54: 河源佳鸿新能源科技有限公司 | C54: 1 | D54: 80 | E54: 0 | F54: 0 | G54: 0 | H54: 0 | I54: 0 | J54: 0 | K54: - | L54: - | M54: - | N54: - | O54: =D54*300+H54*300+J54*300 -> 24000 | P54: =F54*60 -> 0 | Q54: =O54+P54 -> 24000 | R54: 1.099
A55: 五 | B55: 紫金县小计 | C55: =SUM(C56:C68) -> 27 | D55: 2835 | E55: 7 | F55: 49 | G55: 1 | H55: 360 | I55: 1 | J55: 300 | K55: - | L55: - | M55: - | N55: - | O55: 1048500 | P55: 2940 | Q55: 1051440 | R55: 48.151
A56: 1 | B56: 广东华阳新能源有限公司 | C56: 5 | D56: 600 | E56: 0 | F56: 0 | G56: 0 | H56: 0 | I56: 0 | J56: 0 | K56: - | L56: - | M56: - | N56: - | O56: 180000 | P56: 0 | Q56: 180000 | R56: =TRUNC(Q56*0.458/10000,3) -> 8.244
A57: 2 | B57: 紫金县龙窝中燃加油站有限公司 | C57: 2 | D57: 240 | E57: 0 | F57: 0 | G57: 0 | H57: 0 | I57: 0 | J57: 0 | K57: - | L57: - | M57: - | N57: - | O57: 72000 | P57: 0 | Q57: 72000 | R57: 3.297
A58: 3 | B58: 紫金县飞航新能源科技有限公司 | C58: 4 | D58: 600 | E58: 0 | F58: 0 | G58: 0 | H58: 0 | I58: 0 | J58: 0 | K58: - | L58: - | M58: - | N58: - | O58: 180000 | P58: 0 | Q58: 180000 | R58: 8.244
A59: 4 | B59: 河源市益客新能源科技有限公司 | C59: 2 | D59: 240 | E59: 0 | F59: 0 | G59: 0 | H59: 0 | I59: 0 | J59: 0 | K59: - | L59: - | M59: - | N59: - | O59: 72000 | P59: 0 | Q59: 72000 | R59: 3.297
A60: 5 | B60: 紫金县敬梓镇敬粮商店 | C60: 1 | D60: 120 | E60: 0 | F60: 0 | G60: 0 | H60: 0 | I60: 0 | J60: 0 | K60: - | L60: - | M60: - | N60: - | O60: 36000 | P60: 0 | Q60: 36000 | R60: 1.648
A61: 6 | B61: 紫金县瓦溪加油站有限公司 | C61: 2 | D61: 160 | E61: 0 | F61: 0 | G61: 0 | H61: 0 | I61: 0 | J61: 0 | K61: - | L61: - | M61: - | N61: - | O61: 48000 | P61: 0 | Q61: 48000 | R61: 2.198
A62: 7 | B62: 紫金县金喜新能源汽车充电站有限公司 | C62: 1 | D62: 160 | E62: 0 | F62: 0 | G62: 0 | H62: 0 | I62: 0 | J62: 0 | K62: - | L62: - | M62: - | N62: - | O62: 48000 | P62: 0 | Q62: 48000 | R62: 2.198
A63: 8 | B63: 紫金县九和镇幸福村敏武充电服务中心 | C63: 3 | D63: 250 | E63: 0 | F63: 0 | G63: 0 | H63: 0 | I63: 0 | J63: 0 | K63: - | L63: - | M63: - | N63: - | O63: 75000 | P63: 0 | Q63: 75000 | R63: 3.435 | S63: 其中1个充电桩共80千瓦为2023年之前接入粤易充
A64: 9 | B64: 紫金县敬梓镇辉良陶瓷店 | C64: 1 | D64: 120 | E64: 0 | F64: 0 | G64: 0 | H64: 0 | I64: 0 | J64: 0 | K64: - | L64: - | M64: - | N64: - | O64: 36000 | P64: 0 | Q64: 36000 | R64: 1.648
A65: 10 | B65: 河源国煌新能源科技有限公司 | C65: 0 | D65: 0 | E65: 7 | F65: 49 | G65: 0 | H65: 0 | I65: 0 | J65: 0 | K65: - | L65: - | M65: - | N65: - | O65: 0 | P65: 2940 | Q65: 2940 | R65: 0.134
A66: 11 | B66: 河源实力新能源有限公司 | C66: 0 | D66: 0 | E66: 0 | F66: 0 | G66: 1 | H66: 360 | I66: 0 | J66: 0 | K66: - | L66: - | M66: - | N66: - | O66: 108000 | P66: 0 | Q66: 108000 | R66: 4.946
A67: 12 | B67: 深圳蔚来能源有限公司 | C67: 0 | D67: 0 | E67: 0 | F67: 0 | G67: 0 | H67: 0 | I67: 1 | J67: 300 | K67: - | L67: - | M67: - | N67: - | O67: 90000 | P67: 0 | Q67: 90000 | R67: 4.122
A68: 13 | B68: 紫金县巴斯巴新能源汽车充电服务有限公司 | C68: 6 | D68: 345 | E68: 0 | F68: 0 | G68: 0 | H68: 0 | I68: 0 | J68: 0 | K68: - | L68: - | M68: - | N68: - | O68: 103500 | P68: 0 | Q68: 103500 | R68: 4.740 | S68: 2023年之前接入粤易充
A69: 六 | B69: 连平县小计 | C69: =SUM(C70:C80) -> 69 | D69: =SUM(D70:D80) -> 5700 | E69: =SUM(E70:E80) -> 1 | F69: =SUM(F70:F80) -> 14 | G69: =SUM(G70:G78) -> 0 | H69: =SUM(H70:H78) -> 0 | I69: 0 | J69: 0 | K69: - | L69: - | M69: - | N69: - | O69: 1710000 | P69: 840 | Q69: 1710840 | R69: 78.350
A70: 1 | B70: 连平县忠信镇安达充电站 | C70: 5 | D70: 600 | E70: 0 | F70: 0 | G70: 0 | H70: 0 | I70: 0 | J70: 0 | K70: - | L70: - | M70: - | N70: - | O70: 180000 | P70: 0 | Q70: =O70+P70 -> 180000 | R70: =TRUNC(Q70*0.458/10000,3) -> 8.244
A71: 2 | B71: 河源市房德经贸实业有限公司 | C71: 3 | D71: 360 | E71: 1 | F71: 14 | G71: 0 | H71: 0 | I71: 0 | J71: 0 | K71: - | L71: - | M71: - | N71: - | O71: 108000 | P71: 840 | Q71: 108840 | R71: 4.984
A72: 3 | B72: 连平县连红投资发展有限公司 | C72: 3 | D72: 360 | E72: 0 | F72: 0 | G72: 0 | H72: 0 | I72: 0 | J72: 0 | K72: - | L72: - | M72: - | N72: - | O72: 108000 | P72: 0 | Q72: 108000 | R72: 4.946
A73: 4 | B73: 连平县隆街镇爱之家装饰部 | C73: 2 | D73: 240 | E73: 0 | F73: 0 | G73: 0 | H73: 0 | I73: 0 | J73: 0 | K73: - | L73: - | M73: - | N73: - | O73: 72000 | P73: 0 | Q73: 72000 | R73: 3.297
A74: 5 | B74: 连平县溪山镇新鸿兴餐厅 | C74: 1 | D74: 120 | E74: 0 | F74: 0 | G74: 0 | H74: 0 | I74: 0 | J74: 0 | K74: - | L74: - | M74: - | N74: - | O74: 36000 | P74: 0 | Q74: 36000 | R74: 1.648
A75: 6 | B75: 河源市电王快充新能源汽车服务有限公司 | C75: 7 | D75: 840 | E75: 0 | F75: 0 | G75: 0 | H75: 0 | I75: 0 | J75: 0 | K75: - | L75: - | M75: - | N75: - | O75: 252000 | P75: 0 | Q75: 252000 | R75: 11.541
A76: 7 | B76: 河源市益客新能源科技有限公司 | C76: 5 | D76: 540 | E76: 0 | F76: 0 | G76: 0 | H76: 0 | I76: 0 | J76: 0 | K76: - | L76: - | M76: - | N76: - | O76: 162000 | P76: 0 | Q76: 162000 | R76: 7.419
A77: 8 | B77: 广东华阳新能源有限公司 | C77: 1 | D77: 120 | E77: 0 | F77: 0 | G77: 0 | H77: 0 | I77: 0 | J77: 0 | K77: - | L77: - | M77: - | N77: - | O77: 36000 | P77: 0 | Q77: 36000 | R77: 1.648
A78: 9 | B78: 中国石化销售股份有限公司广东河源石油分公司 | C78: 3 | D78: 360 | E78: 0 | F78: 0 | G78: 0 | H78: 0 | I78: 0 | J78: 0 | K78: - | L78: - | M78: - | N78: - | O78: 108000 | P78: 0 | Q78: 108000 | R78: 4.946
A79: 10 | B79: 广东健鹏电力工程有限公司 | C79: 1 | D79: 120 | E79: 0 | F79: 0 | G79: 0 | H79: 0 | I79: 0 | J79: 0 | K79: - | L79: - | M79: - | N79: - | O79: 36000 | P79: 0 | Q79: 36000 | R79: 1.648 | S79: 2023年之前接入粤易充
A80: 11 | B80: 连平县苏川公共汽车有限公司 | C80: 38 | D80: 2040 | E80: 0 | F80: 0 | G80: 0 | H80: 0 | I80: 0 | J80: 0 | K80: - | L80: - | M80: - | N80: - | O80: 612000 | P80: 0 | Q80: 612000 | R80: 28.029 | S80: 2023年之前接入粤易充
A81: 七 | B81: 江东新区小计 | C81: =SUM(C82:C87) -> 16 | D81: 2000 | E81: 0 | F81: 0 | G81: 3 | H81: 1320 | I81: 0 | J81: 0 | K81: - | L81: - | M81: - | N81: - | O81: 996000 | P81: 0 | Q81: 996000 | R81: 45.615
A82: 1 | B82: 紫金县新晟豪新能源科技有限公司 | C82: 2 | D82: 320 | E82: 0 | F82: 0 | G82: 1 | H82: 480 | I82: 0 | J82: 0 | K82: - | L82: - | M82: - | N82: - | O82: 240000 | P82: 0 | Q82: 240000 | R82: =TRUNC(Q82*0.458/10000,3) -> 10.992
A83: 2 | B83: 深河公共（河源市）新能源有限公司 | C83: 0 | D83: 0 | E83: 0 | F83: 0 | G83: 1 | H83: 360 | I83: 0 | J83: 0 | K83: - | L83: - | M83: - | N83: - | O83: 108000 | P83: 0 | Q83: 108000 | R83: =TRUNC(Q83*0.458/10000,3) -> 4.946
A84: 3 | B84: 河源市百胜新能源汽车有限公司 | C84: 3 | D84: 360 | E84: 0 | F84: 0 | G84: 0 | H84: 0 | I84: 0 | J84: 0 | K84: - | L84: - | M84: - | N84: - | O84: 108000 | P84: 0 | Q84: 108000 | R84: =TRUNC(Q84*0.458/10000,3) -> 4.946
A85: 4 | B85: 河源市随意充新能源汽车充电服务有限公司 | C85: 6 | D85: 720 | E85: 0 | F85: 0 | G85: 0 | H85: 0 | I85: 0 | J85: 0 | K85: - | L85: - | M85: - | N85: - | O85: =D85*300+H85*300+J85*300 -> 216000 | P85: =F85*60 -> 0 | Q85: =O85+P85 -> 216000 | R85: =TRUNC(Q85*0.458/10000,3) -> 9.892
A86: 5 | B86: 河源市绿电科技发展有限责任公司 | C86: 5 | D86: 600 | E86: 0 | F86: 0 | G86: 0 | H86: 0 | I86: 0 | J86: 0 | K86: - | L86: - | M86: - | N86: - | O86: 180000 | P86: 0 | Q86: 180000 | R86: 8.244
A87: 6 | B87: 中国石化销售股份有限公司广东河源石油分公司 | C87: 0 | D87: 0 | E87: 0 | F87: 0 | G87: 1 | H87: 480 | I87: 0 | J87: 0 | K87: - | L87: - | M87: - | N87: - | O87: 144000 | P87: 0 | Q87: 144000 | R87: 6.595
A88: 八 | B88: 市高新区小计 | C88: =SUM(C89:C91) -> 15 | D88: =SUM(D89:D91) -> 1920 | E88: =SUM(E89:E91) -> 2 | F88: 14 | G88: 1 | H88: 480 | I88: 0 | J88: 0 | K88: - | L88: - | M88: - | N88: - | O88: 720000 | P88: 840 | Q88: 720840 | R88: 33.013
A89: 1 | B89: 广东明煌电力工程有限公司 | C89: 5 | D89: 600 | E89: 0 | F89: 0 | G89: 0 | H89: 0 | I89: 0 | J89: 0 | K89: - | L89: - | M89: - | N89: - | O89: 180000 | P89: 0 | Q89: 180000 | R89: 8.244
A90: 2 | B90: 河源市润晟新能源有限公司 | C90: 9 | D90: 1080 | E90: 2 | F90: 14 | G90: 0 | H90: 0 | I90: 0 | J90: 0 | K90: - | L90: - | M90: - | N90: - | O90: 324000 | P90: 840 | Q90: 324840 | R90: 14.877
A91: 3 | B91: 中国石化销售股份有限公司广东河源石油分公司 | C91: 1 | D91: 240 | E91: 0 | F91: 0 | G91: 1 | H91: 480 | I91: 0 | J91: 0 | K91: - | L91: - | M91: - | N91: - | O91: 216000 | P91: 0 | Q91: 216000 | R91: 9.892
A92: 九 | B92: 河源供电局小计 | C92: 43 | D92: 5160 | E92: 2 | F92: 14 | G92: 0 | H92: 0 | I92: 0 | J92: 0 | K92: - | L92: - | M92: - | N92: - | O92: 1548000 | P92: 840 | Q92: 1548840 | R92: 70.936
A93: 十 | B93: 广东省南粤交通河惠莞高速公路管理处小计 | C93: 0 | D93: 0 | E93: 0 | F93: 0 | G93: 0 | H93: 0 | I93: 0 | J93: 0 | K93: 4 | L93: 640 | M93: 0 | N93: 0 | O93: 128000 | P93: 0 | Q93: 128000 | R93: 5.862 | S93: 2023年之前接入粤易充
A94: 8个县区、河源供电局、广东省南粤交通河惠莞高速公路管理处合计 | C94: =SUM(C5+C23+C34+C42+C55+C69+C81+C88+C92+C93) -> 502 | D94: 51255 | E94: 21 | F94: 154 | G94: 12 | H94: 5790 | I94: 2 | J94: 850 | K94: 4 | L94: 640 | M94: 0 | N94: 0 | O94: =300*D94+300*H94+300*J94+200*L94 -> 17496500 | P94: =60*F94 -> 9240 | Q94: =O94+P94 -> 17505740 | R94: 801.728
A95: 折算系数=省下达奖补资金总额/(8个县区、河源供电局、广东省南粤交通河惠莞高速公路管理处合计金额)（保留四位小数） | Q95: 0.4580
A96: 折算后粤东西北地区直流桩补贴标准=300乘以折算系数（保留两位小数） | Q96: 137.40元/千瓦
A97: 折算后粤东西北地区交流桩补贴标准=60乘以折算系数（保留两位小数） | Q97: 27.48元/千瓦
A98: 折算后高速公路直流桩补贴标准=200乘以折算系数（保留两位小数） | Q98: 91.6元/千瓦
A99: 折算后高速公路交流桩补贴标准=40乘以折算系数（保留两位小数） | Q99: 18.32元/千瓦
